fUST/lending_fUST_20260610
["ID","MTS","AMOUNT","RATE_DAILY","PERIOD"]
[424635418,1781020832000,200.0,0.00022883,120]
[424635423,1781020891000,200.0,0.00022597,120]
[424635492,1781021432000,-495.51425554,0.00014539,2]
[424635495,1781021432000,-783.87264066,0.00014539,2]
[424635582,1781021441000,-561.9850397,0.00015452,2]
[424635584,1781021441000,-500.0,0.00016423,2]
[424635580,1781021441000,-3720.6131038,0.00014539,2]
[424635586,1781021441000,-401.5531826,0.00016423,2]
[424635583,1781021441000,-157.0,0.00016137,3]
[424635581,1781021441000,-262.3486739,0.00015407,2]
[424635585,1781021441000,-500.0,0.00016423,2]
[424635604,1781021444000,-215.47820698,0.00016423,2]
[424635603,1781021444000,-98.4468174,0.00016423,2]
[424635605,1781021444000,-500.0,0.00016423,2]
[424635607,1781021444000,-571.51800409,0.00016423,2]
[424635606,1781021444000,-493.99615222,0.00016423,2]
[424635619,1781021444000,-612.19429569,0.00016508,2]
[424635617,1781021444000,-612.19429569,0.00016508,2]
[424635608,1781021444000,-500.0,0.00016423,2]
[424635610,1781021444000,-500.0,0.00016438,2]
[424635621,1781021444000,-344.35165714,0.00016508,2]
[424635611,1781021444000,-693.92,0.00016438,2]
[424635620,1781021444000,-612.19429569,0.00016508,2]
[424635615,1781021444000,-612.19429569,0.00016508,2]
[424635614,1781021444000,-500.0,0.00016438,2]
[424635609,1781021444000,-4791.76330743,0.00016424,2]
[424635612,1781021444000,-500.0,0.00016438,2]
[424635618,1781021444000,-612.19429569,0.00016508,2]
[424635616,1781021444000,-171.55437626,0.00016508,2]
[424635613,1781021444000,-500.0,0.00016438,2]
[424635638,1781021525000,164.0,0.0002,120]
[424635645,1781021654000,158.0,0.0002,120]
[424635647,1781021718000,257.6,5e-05,2]
[424635648,1781021768000,205.9701045,0.00023574,120]
[424635664,1781021985000,158.0,0.00020317,120]
[424635665,1781021986000,158.0,0.00021317,120]
[424635666,1781021988000,158.0,0.00022317,120]
[424635668,1781022028000,295.97,8.4e-05,2]
[424635672,1781022049000,167.0,0.00020317,120]
[424635673,1781022051000,167.0,0.00021317,120]
[424635674,1781022052000,167.56814525,0.00022317,120]
[424635692,1781022108000,1114.47405874,8.4e-05,2]
[424635691,1781022108000,38.22594126,8.4e-05,2]
[424635688,1781022108000,392.31194126,8.4e-05,2]
[424635689,1781022108000,372.06,8.4e-05,2]
[424635690,1781022108000,388.31805874,8.4e-05,2]
[424635687,1781022108000,1152.69,8.4e-05,2]
[424635693,1781022109000,1152.69,8.4e-05,2]
[424635694,1781022112000,153.0,0.00020317,120]
[424635695,1781022113000,153.0,0.00021317,120]
[424635696,1781022115000,153.0,0.00022317,120]
[424635697,1781022127000,2858.36259327,0.00020317,30]
[424635699,1781022189000,151.0,0.00020317,120]
[424635701,1781022191000,151.0,0.00021317,120]
[424635702,1781022192000,151.0,0.00022317,120]
[424635713,1781022272000,278.0,0.00020316,120]
[424635714,1781022273000,278.0,0.00021316,120]
[424635715,1781022274000,278.0,0.00022316,120]
[424635719,1781022318000,554.53099238,0.00023288,120]
[424635725,1781022336000,153.69,8.4e-05,2]
[424635724,1781022336000,153.69,8.4e-05,2]
[424635723,1781022336000,153.69,8.4e-05,2]
[424635727,1781022356000,156.0,0.00020316,120]
[424635728,1781022358000,156.0,0.00021316,120]
[424635729,1781022360000,156.0,0.00022316,120]
[424635730,1781022368000,205.97010449,0.00020316,120]
[424635732,1781022433000,154.0,0.00020316,120]
[424635733,1781022434000,154.0,0.00021316,120]
[424635734,1781022436000,154.0,0.00022316,120]
[424635737,1781022487000,14000.0,0.00023,120]
[424635739,1781022507000,159.0,0.00020316,120]
[424635740,1781022508000,159.0,0.00021316,120]
[424635741,1781022509000,159.0,0.00022316,120]
[424635767,1781022572000,167.0,0.00020316,120]
[424635771,1781022576000,167.0,0.00021316,120]
[424635772,1781022578000,167.0,0.00022316,120]
[424635829,1781022632000,-1602.12387162,0.00012615,2]
[424635833,1781022632000,-295.4827344,0.00012871,2]
[424635835,1781022632000,-300.0,0.00013131,2]
[424635834,1781022632000,-4704.5172656,0.00012871,2]
[424635831,1781022632000,-5000.0,0.00012742,2]
[424635837,1781022632000,-500.0,0.00013264,2]
[424635836,1781022632000,-300.0,0.00013131,2]
[424635839,1781022632000,-500.0,0.00013264,2]
[424635841,1781022632000,-775.12856745,0.000134,2]
[424635838,1781022632000,-184.2510255,0.00013264,2]
[424635840,1781022632000,-183.84547934,0.00013399,2]
[424635941,1781022638000,-500.0,0.00016438,2]
[424635937,1781022638000,-209.46953307,0.00016411,2]
[424635935,1781022638000,-158.58199034,0.0001641,2]
[424635934,1781022638000,-508.94974336,0.0001641,2]
[424635933,1781022638000,-500.0,0.0001641,2]
[424635931,1781022638000,-500.0,0.0001641,2]
[424635925,1781022638000,-605190.09032817,0.0001621,2]
[424635924,1781022638000,-597.36910325,0.00016209,2]
[424635938,1781022638000,-500.0,0.00016411,2]
[424635932,1781022638000,-500.0,0.0001641,2]
[424635940,1781022638000,-550.0,0.00016411,2]
[424635946,1781022638000,-500.0,0.00016438,2]
[424635936,1781022638000,-515.67632869,0.00016411,2]
[424635943,1781022638000,-500.0,0.00016438,2]
[424635953,1781022638000,-500.0,0.00016438,2]
[424635942,1781022638000,-500.0,0.00016438,2]
[424635944,1781022638000,-500.0,0.00016438,2]
[424635928,1781022638000,-500.0,0.00016211,2]
[424635945,1781022638000,-500.0,0.00016438,2]
[424635952,1781022638000,-500.0,0.00016438,2]
[424635947,1781022638000,-504.89099481,0.00016438,2]
[424635948,1781022638000,-507.2854192,0.00016438,2]
[424635951,1781022638000,-310.97324982,0.00016438,2]
[424635950,1781022638000,-500.0,0.00016438,2]
[424635939,1781022638000,-421.65125097,0.00016411,2]
[424635926,1781022638000,-135548.32164853,0.0001621,2]
[424635918,1781022638000,-500.0,0.00016209,2]
[424635930,1781022638000,-500.0,0.0001641,2]
[424635949,1781022638000,-500.0,0.00016438,2]
[424635899,1781022638000,-11795.228638,0.000134,2]
[424635900,1781022638000,-261.0,0.00014398,2]
[424635898,1781022638000,-6854.64279455,0.000134,2]
[424635901,1781022638000,-300.0,0.00014398,2]
[424635902,1781022638000,-190.83860195,0.00014399,2]
[424635905,1781022638000,-156.2328304,0.00015284,7]
[424635909,1781022638000,-2433.34649858,0.0001611,2]
[424635910,1781022638000,-191.0,0.00016137,3]
[424635906,1781022638000,-200.99127991,0.00015284,7]
[424635911,1781022638000,-234.34924562,0.00016183,7]
[424635927,1781022638000,-188.91,0.0001621,2]
[424635904,1781022638000,-282.56582626,0.00015,2]
[424635903,1781022638000,-154.0,0.00014686,7]
[424635913,1781022638000,-360.836,0.00016183,2]
[424635907,1781022638000,-450.46956635,0.00015402,2]
[424635915,1781022638000,-822.77,0.000162,3]
[424635917,1781022638000,-500.0,0.00016209,2]
[424635929,1781022638000,-206.70314391,0.00016309,2]
[424635919,1781022638000,-500.0,0.00016209,2]
[424635923,1781022638000,-500.0,0.00016209,2]
[424635922,1781022638000,-500.0,0.00016209,2]
[424635920,1781022638000,-500.0,0.00016209,2]
[424635921,1781022638000,-500.0,0.00016209,2]
[424635908,1781022638000,-159.98800947,0.0001566,2]
[424635954,1781022638000,-500.0,0.00016438,2]
[424635977,1781022638000,-500.0,0.00016438,2]
[424635962,1781022638000,-500.0,0.00016438,2]
[424635986,1781022638000,-500.0,0.00016438,2]
[424635984,1781022638000,-500.0,0.00016438,2]
[424635987,1781022638000,-244.07668306,0.00016438,2]
[424635985,1781022638000,-665.01,0.00016438,2]
[424635990,1781022638000,-512.2,0.00016438,2]
[424635994,1781022638000,-500.0,0.00016438,2]
[424635993,1781022638000,-501.05243714,0.00016438,2]
[424635995,1781022638000,-500.0,0.00016438,2]
[424635991,1781022638000,-511.67969983,0.00016438,2]
[424635992,1781022638000,-500.0,0.00016438,2]
[424635999,1781022638000,-500.0,0.00016438,2]
[424635988,1781022638000,-217.17988352,0.00016438,2]
[424635998,1781022638000,-500.0,0.00016438,2]
[424636000,1781022638000,-1845.75,0.00016438,2]
[424636001,1781022638000,-500.0,0.00016438,2]
[424636002,1781022638000,-500.0,0.00016438,2]
[424636003,1781022638000,-500.0,0.00016438,2]
[424636005,1781022638000,-500.0,0.00016438,2]
[424636006,1781022638000,-500.0,0.00016438,2]
[424636007,1781022638000,-604.42,0.00016438,2]
[424636008,1781022638000,-500.0,0.00016509,2]
[424636004,1781022638000,-500.0,0.00016438,2]
[424636009,1781022638000,-378.09031054,0.00016509,2]
[424635958,1781022638000,-541.08238246,0.00016438,2]
[424635997,1781022638000,-500.0,0.00016438,2]
[424635989,1781022638000,-500.0,0.00016438,2]
[424635996,1781022638000,-569.1295016,0.00016438,2]
[424635980,1781022638000,-500.0,0.00016438,2]
[424635963,1781022638000,-511.18253465,0.00016438,2]
[424635983,1781022638000,-500.0,0.00016438,2]
[424635960,1781022638000,-511.33055604,0.00016438,2]
[424635965,1781022638000,-500.0,0.00016438,2]
[424635959,1781022638000,-616.3,0.00016438,2]
[424635957,1781022638000,-503.12800076,0.00016438,2]
[424635956,1781022638000,-500.66094251,0.00016438,2]
[424635955,1781022638000,-500.0,0.00016438,2]
[424635961,1781022638000,-500.0,0.00016438,2]
[424635967,1781022638000,-500.0,0.00016438,2]
[424635978,1781022638000,-561.64,0.00016438,2]
[424635969,1781022638000,-386.93278558,0.00016438,2]
[424635964,1781022638000,-500.0,0.00016438,2]
[424635982,1781022638000,-500.0,0.00016438,2]
[424635981,1781022638000,-500.0,0.00016438,2]
[424635968,1781022638000,-500.0,0.00016438,2]
[424635979,1781022638000,-500.0,0.00016438,2]
[424635974,1781022638000,-500.0,0.00016438,2]
[424635971,1781022638000,-503.16287545,0.00016438,2]
[424635972,1781022638000,-500.0,0.00016438,2]
[424635975,1781022638000,-584.76911445,0.00016438,2]
[424635973,1781022638000,-500.0,0.00016438,2]
[424635970,1781022638000,-500.0,0.00016438,2]
[424635966,1781022638000,-500.0,0.00016438,2]
[424635976,1781022638000,-500.0,0.00016438,2]
[424636051,1781022639000,-598.34,0.00016986,2]
[424636054,1781022639000,-500.0,0.00016986,2]
[424636052,1781022639000,-500.0,0.00016986,2]
[424636053,1781022639000,-500.0,0.00016986,2]
[424636049,1781022639000,-512.2,0.00016986,2]
[424636046,1781022639000,-665.01,0.00016986,2]
[424636047,1781022639000,-500.0,0.00016986,2]
[424636055,1781022639000,-1845.75,0.00016986,2]
[424636044,1781022639000,-500.0,0.00016986,2]
[424636057,1781022639000,-439.95812677,0.00016986,2]
[424636048,1781022639000,-500.0,0.00016986,2]
[424636050,1781022639000,-500.0,0.00016986,2]
[424636059,1781022639000,-500.0,0.00016986,2]
[424636071,1781022639000,-500.0,0.0001726,2]
[424636062,1781022639000,-916037.3684,0.00017216,7]
[424636066,1781022639000,-665.01,0.0001726,2]
[424636065,1781022639000,-500.0,0.0001726,2]
[424636068,1781022639000,-500.0,0.0001726,2]
[424636064,1781022639000,-417.15472785,0.00017217,7]
[424636058,1781022639000,-500.0,0.00016986,2]
[424636069,1781022639000,-512.2,0.0001726,2]
[424636063,1781022639000,-160.0,0.00017217,7]
[424636061,1781022639000,-152.0,0.00017179,7]
[424636067,1781022639000,-500.0,0.0001726,2]
[424636070,1781022639000,-500.0,0.0001726,2]
[424636056,1781022639000,-500.0,0.00016986,2]
[424636060,1781022639000,-4312.58697675,0.00017117,2]
[424636045,1781022639000,-284.47416167,0.00016986,2]
[424636013,1781022639000,-444.0,0.00016648,2]
[424636042,1781022639000,-191.55,0.00016712,2]
[424636079,1781022639000,-665.01,0.00017534,2]
[424636010,1781022639000,-160.0,0.00016523,2]
[424636011,1781022639000,-417.15472785,0.00016523,2]
[424636012,1781022639000,-763364.4737,0.00016616,2]
[424636015,1781022639000,-504.02229482,0.00016712,2]
[424636018,1781022639000,-200.23,0.00016712,2]
[424636017,1781022639000,-500.0,0.00016712,2]
[424636020,1781022639000,-500.0,0.00016712,2]
[424636021,1781022639000,-336.27698735,0.00016712,2]
[424636030,1781022639000,-512.2,0.00016712,2]
[424636029,1781022639000,-500.0,0.00016712,2]
[424636016,1781022639000,-179.98,0.00016712,2]
[424636019,1781022639000,-230.06,0.00016712,2]
[424636024,1781022639000,-500.0,0.00016712,2]
[424636023,1781022639000,-500.0,0.00016712,2]
[424636026,1781022639000,-665.01,0.00016712,2]
[424636027,1781022639000,-500.0,0.00016712,2]
[424636031,1781022639000,-500.0,0.00016712,2]
[424636036,1781022639000,-500.0,0.00016712,2]
[424636034,1781022639000,-500.0,0.00016712,2]
[424636040,1781022639000,-500.0,0.00016712,2]
[424636038,1781022639000,-500.0,0.00016712,2]
[424636043,1781022639000,-332.27833044,0.00016986,2]
[424636035,1781022639000,-500.0,0.00016712,2]
[424636032,1781022639000,-500.0,0.00016712,2]
[424636037,1781022639000,-1845.75,0.00016712,2]
[424636039,1781022639000,-500.0,0.00016712,2]
[424636041,1781022639000,-500.0,0.00016712,2]
[424636078,1781022639000,-500.0,0.00017534,2]
[424636014,1781022639000,-186.0,0.00016648,2]
[424636074,1781022639000,-1845.75,0.0001726,2]
[424636111,1781022639000,-180.42768634,0.00018082,2]
[424636113,1781022639000,-1845.75,0.00018082,2]
[424636114,1781022639000,-500.0,0.00018082,2]
[424636122,1781022639000,-512.2,0.00018356,2]
[424636123,1781022639000,-610.61111767,0.00018356,2]
[424636115,1781022639000,-500.0,0.00018082,2]
[424636116,1781022639000,-151.0,0.00018239,2]
[424636120,1781022639000,-665.01,0.00018356,2]
[424636112,1781022639000,-500.0,0.00018082,2]
[424636119,1781022639000,-168.0,0.00018329,3]
[424636117,1781022639000,-160.0,0.000183,7]
[424636121,1781022639000,-500.0,0.00018356,2]
[424636131,1781022639000,-500.0,0.0001863,2]
[424636125,1781022639000,-500.0,0.00018356,2]
[424636126,1781022639000,-500.0,0.00018356,2]
[424636124,1781022639000,-1845.75,0.00018356,2]
[424636129,1781022639000,-152.0,0.00018537,2]
[424636128,1781022639000,-155.21875911,0.00018476,2]
[424636127,1781022639000,-180.07306929,0.00018399,2]
[424636130,1781022639000,-665.01,0.0001863,2]
[424636133,1781022639000,-512.2,0.0001863,2]
[424636138,1781022639000,-151.0,0.00018787,2]
[424636136,1781022639000,-181.30675263,0.0001863,2]
[424636135,1781022639000,-517.84424631,0.0001863,2]
[424636134,1781022639000,-1845.75,0.0001863,2]
[424636137,1781022639000,-744.03,0.0001863,2]
[424636080,1781022639000,-500.0,0.00017534,2]
[424636102,1781022639000,-1845.75,0.00017808,2]
[424636108,1781022639000,-500.0,0.00018082,2]
[424636118,1781022639000,-417.15472785,0.000183,7]
[424636100,1781022639000,-500.0,0.00017808,2]
[424636075,1781022639000,-500.0,0.0001726,2]
[424636082,1781022639000,-500.0,0.00017534,2]
[424636076,1781022639000,-541.03,0.0001726,2]
[424636072,1781022639000,-500.0,0.0001726,2]
[424636077,1781022639000,-500.0,0.0001726,2]
[424636073,1781022639000,-500.0,0.0001726,2]
[424636104,1781022639000,-500.0,0.00017808,2]
[424636086,1781022639000,-500.0,0.00017534,2]
[424636089,1781022639000,-1845.75,0.00017534,2]
[424636087,1781022639000,-484.29419668,0.00017534,2]
[424636088,1781022639000,-152.02887711,0.00017534,2]
[424636090,1781022639000,-500.0,0.00017534,2]
[424636085,1781022639000,-500.0,0.00017534,2]
[424636092,1781022639000,-500.0,0.00017534,2]
[424636084,1781022639000,-512.2,0.00017534,2]
[424636093,1781022639000,-160.0,0.000177,7]
[424636095,1781022639000,-420.93,0.00017808,2]
[424636103,1781022639000,-500.0,0.00017808,2]
[424636107,1781022639000,-665.01,0.00018082,2]
[424636105,1781022639000,-155.21875911,0.00017921,2]
[424636109,1781022639000,-274.46,0.00018082,2]
[424636101,1781022639000,-500.0,0.00017808,2]
[424636110,1781022639000,-512.2,0.00018082,2]
[424636099,1781022639000,-512.2,0.00017808,2]
[424636096,1781022639000,-665.01,0.00017808,2]
[424636094,1781022639000,-417.15472785,0.000177,7]
[424636097,1781022639000,-500.0,0.00017808,2]
[424636098,1781022639000,-500.0,0.00017808,2]
[424636150,1781022640000,-665.01,0.00019178,2]
[424636159,1781022640000,-512.2,0.00019452,2]
[424636149,1781022640000,-300.0,0.00019178,2]
[424636148,1781022640000,-168.19,0.00019157,2]
[424636158,1781022640000,-500.0,0.00019452,2]
[424636146,1781022640000,-3100.7545666,0.00019047,2]
[424636157,1781022640000,-665.01,0.00019452,2]
[424636140,1781022640000,-665.01,0.00018904,2]
[424636145,1781022640000,-3235.3384116,0.00019001,2]
[424636143,1781022640000,-1845.75,0.00018904,2]
[424636142,1781022640000,-512.2,0.00018904,2]
[424636139,1781022640000,-160.0,0.00018899,3]
[424636141,1781022640000,-500.0,0.00018904,2]
[424636152,1781022640000,-512.2,0.00019178,2]
[424636144,1781022640000,-744.03,0.00018904,2]
[424636153,1781022640000,-1845.75,0.00019178,2]
[424636147,1781022640000,-179.9704679,0.00019053,2]
[424636151,1781022640000,-500.0,0.00019178,2]
[424636172,1781022640000,-844.16769238,0.00014298,2]
[424636173,1781022640000,-4477.36300952,0.000195,2]
[424636168,1781022640000,-308.59,0.00013266,2]
[424636170,1781022640000,-1452.90456802,0.00013266,2]
[424636171,1781022640000,-281.93536208,0.00013266,2]
[424636167,1781022640000,-489.11931254,0.00013266,2]
[424636174,1781022640000,-5704.90920036,0.000195,2]
[424636169,1781022640000,-2467.45075736,0.00013266,2]
[424636163,1781022640000,-326.2307919,0.00019464,2]
[424636164,1781022640000,-267501.20067393,0.000195,2]
[424636165,1781022640000,-2035.17694897,0.000195,2]
[424636162,1781022640000,-326.5044788,0.00019464,2]
[424636160,1781022640000,-1845.75,0.00019452,2]
[424636155,1781022640000,-2634.72529927,0.00019216,2]
[424636156,1781022640000,-1202.55536449,0.00019321,4]
[424636161,1781022640000,-744.03,0.00019452,2]
[424636154,1781022640000,-744.03,0.00019178,2]
[424636200,1781022643000,-684.51482556,0.000195,2]
[424636214,1781022643000,152.0,0.00020316,120]
[424636204,1781022643000,-1344.3000481,0.000195,2]
[424636202,1781022643000,-48999.99999999,0.000195,2]
[424636201,1781022643000,-615.908,0.000195,2]
[424636229,1781022645000,-844.16769234,0.00017527,2]
[424636215,1781022645000,152.0,0.00021316,120]
[424636235,1781022646000,152.0,0.00022316,120]
[424636233,1781022646000,-6012.0,0.000195,2]
[424636234,1781022646000,-5467.87868874,0.000195,2]
[424636230,1781022646000,-74004.98144594,0.000195,2]
[424636243,1781022721000,156.0,0.00020316,120]
[424636244,1781022722000,156.0,0.00021316,120]
[424636245,1781022724000,156.0,0.00022316,120]
[424636277,1781023536000,158.0,0.00020291,120]
[424636278,1781023537000,158.0,0.00021291,120]
[424636279,1781023539000,158.0,0.00022291,120]
[424636284,1781023665000,153.0,0.00020291,120]
[424636285,1781023666000,153.0,0.00021291,120]
[424636286,1781023667000,153.0,0.00022291,120]
[424636304,1781023737000,151.0,0.00020291,120]
[424636305,1781023738000,151.0,0.00021291,120]
[424636306,1781023740000,151.0,0.00022291,120]
[424636320,1781023814000,236.0,0.00020291,120]
[424636321,1781023815000,236.0,0.00021291,120]
[424636322,1781023817000,236.0,0.00022291,120]
[424636340,1781023831000,-500.0,0.00013698,2]
[424636343,1781023831000,-2703.43303317,0.0001581,2]
[424636339,1781023831000,-5000.0,0.00013561,2]
[424636342,1781023831000,-288.668,0.0001569,2]
[424636345,1781023831000,-1331.37290307,0.0001581,2]
[424636341,1781023831000,-1000.0,0.00014984,2]
[424636344,1781023831000,-422.26704533,0.0001581,2]
[424636347,1781023832000,-2410.32171988,0.0001581,2]
[424636401,1781023839000,-1689.72065281,0.0001581,2]
[424636399,1781023839000,-33181.84975697,0.0001581,2]
[424636389,1781023839000,-1193851.94922516,0.0001581,2]
[424636393,1781023839000,-25630.78978661,0.0001581,2]
[424636370,1781023839000,-1385.59573854,0.0001581,2]
[424636488,1781023840000,-5339.53196822,0.0001581,2]
[424636482,1781023840000,-2784.42643806,0.0001581,2]
[424636479,1781023840000,-1604.14,0.0001581,2]
[424636527,1781023843000,-7500.01880797,0.0001581,2]
[424636537,1781023846000,-6628.165553,0.0001581,2]
[424636538,1781023846000,-7202.50284663,0.0001581,2]
[424636541,1781023878000,172.93610253,0.00020291,120]
[424636542,1781023899000,156.0,0.00020291,120]
[424636543,1781023900000,156.0,0.00021291,120]
[424636544,1781023902000,156.0,0.00022291,120]
[424636545,1781023968000,154.0,0.00020291,120]
[424636546,1781023969000,154.0,0.00021291,120]
[424636547,1781023971000,154.0,0.00022291,120]
[424636549,1781024034000,159.0,0.00020291,120]
[424636550,1781024036000,159.0,0.00021291,120]
[424636551,1781024037000,159.0,0.00022291,120]
[424636552,1781024095000,167.0,0.00020291,120]
[424636553,1781024097000,167.0,0.00021291,120]
[424636554,1781024098000,167.02875955,0.00022291,120]
[424636555,1781024155000,152.0,0.00020291,120]
[424636556,1781024156000,152.0,0.00021291,120]
[424636557,1781024158000,152.0,0.00022291,120]
[424636560,1781024225000,156.0,0.00020291,120]
[424636561,1781024227000,156.0,0.00021291,120]
[424636562,1781024228000,156.0,0.00022291,120]
[424636565,1781024290000,6004.0,0.0002328,120]
[424636569,1781024511000,-1767.02945093,0.00014522,2]
[424636633,1781025025000,158.0,0.00020211,120]
[424636634,1781025026000,158.0,0.00021211,120]
[424636635,1781025028000,158.0,0.00022211,120]
[424636636,1781025029000,158.0,0.00023211,120]
[424636668,1781025032000,-12.34216107,0.00014337,2]
[424636667,1781025032000,-3292.85126973,0.00014194,2]
[424636666,1781025032000,-1707.14873027,0.00014194,2]
[424636673,1781025032000,-209.10338945,0.00015451,2]
[424636670,1781025032000,-1000.0,0.00014669,2]
[424636671,1781025032000,-179.897805,0.00015068,2]
[424636674,1781025032000,-401.83,0.000155,3]
[424636675,1781025032000,-200.91,0.000155,3]
[424636672,1781025032000,-633.12576929,0.0001541,2]
[424636669,1781025032000,-154.32783893,0.00014337,2]
[424636678,1781025032000,-152.22431661,0.00015508,2]
[424636683,1781025032000,-238.9299229,0.00015508,2]
[424636684,1781025032000,-991.96820002,0.00015508,2]
[424636685,1781025032000,-921.60187708,0.00015508,2]
[424636686,1781025032000,-70.36632294,0.00015508,2]
[424636676,1781025032000,-602.78,0.000155,3]
[424636688,1781025032000,-970.91547704,0.00015509,2]
[424636687,1781025032000,-991.96820002,0.00015508,2]
[424636682,1781025032000,-753.03827712,0.00015508,2]
[424636680,1781025032000,-173.01814406,0.00015508,2]
[424636681,1781025032000,-991.96820002,0.00015508,2]
[424636730,1781025038000,-174.61311156,0.00015508,2]
[424636740,1781025038000,-991.96820002,0.00015508,2]
[424636745,1781025038000,-991.96820002,0.00015508,2]
[424636749,1781025038000,-991.96820002,0.00015508,2]
[424636742,1781025038000,-991.96820002,0.00015508,2]
[424636732,1781025038000,-500.0,0.00015508,2]
[424636751,1781025038000,-991.96820002,0.00015508,2]
[424636736,1781025038000,-604.19824506,0.00015508,2]
[424636734,1781025038000,-500.0,0.00015508,2]
[424636744,1781025038000,-991.96820002,0.00015508,2]
[424636753,1781025038000,-991.96820002,0.00015508,2]
[424636738,1781025038000,-991.96820002,0.00015508,2]
[424636772,1781025038000,-1449.97840101,0.0001551,2]
[424636770,1781025038000,-52440.523563,0.0001551,2]
[424636766,1781025038000,-1547.99999999,0.0001551,2]
[424636764,1781025038000,-30507.36117799,0.0001551,2]
[424636748,1781025038000,-991.96820002,0.00015508,2]
[424636761,1781025038000,-29726.70042357,0.0001551,2]
[424636756,1781025038000,-991.96820002,0.00015508,2]
[424636759,1781025038000,-2073.61078389,0.00015509,2]
[424636758,1781025038000,-991.96820002,0.00015508,2]
[424637049,1781025040000,-1756.8,0.0001551,2]
[424637044,1781025040000,-2118.69089328,0.0001551,2]
[424637042,1781025040000,-24225.17446489,0.0001551,2]
[424637074,1781025041000,-544.22752634,0.0001551,2]
[424637344,1781025043000,-2068.34681663,0.00015355,2]
[424637349,1781025043000,-371.47829495,0.0001551,2]
[424637336,1781025043000,-2931.65318337,0.00015355,2]
[424637742,1781025046000,-8078.709267,0.0001551,2]
[424637738,1781025046000,-116800.85829555,0.0001551,2]
[424637740,1781025046000,-6320.20764113,0.0001551,2]
[424637715,1781025046000,-2452.93688462,0.0001551,2]
[424637717,1781025046000,-964.91671677,0.0001551,2]
[424637705,1781025046000,-19211.11784142,0.0001551,2]
[424637708,1781025046000,-3268.93180977,0.0001551,2]
[424640342,1781025097000,400.0,0.00020211,120]
[424640343,1781025138000,153.0,0.00020211,120]
[424640344,1781025139000,153.0,0.00021211,120]
[424640345,1781025140000,153.0,0.00022211,120]
[424640346,1781025142000,153.0,0.00023211,120]
[424640358,1781025195000,151.0,0.00020211,120]
[424640359,1781025196000,151.0,0.00021211,120]
[424640360,1781025197000,151.0,0.00022211,120]
[424640361,1781025199000,151.0,0.00023211,120]
[424640365,1781025261000,201.0,0.00020211,120]
[424640366,1781025262000,201.0,0.00021211,120]
[424640367,1781025264000,201.0,0.00022211,120]
[424640368,1781025265000,201.0,0.00023211,120]
[424640374,1781025335000,156.0,0.00020211,120]
[424640375,1781025336000,156.0,0.00021211,120]
[424640376,1781025338000,156.0,0.00022211,120]
[424640377,1781025339000,156.0,0.00023211,120]
[424640380,1781025393000,154.0,0.00020211,120]
[424640381,1781025394000,154.0,0.00021211,120]
[424640382,1781025396000,154.0,0.00022211,120]
[424640383,1781025397000,154.0,0.00023211,120]
[424640386,1781025449000,160.0,0.00020211,120]
[424640387,1781025451000,160.0,0.00021211,120]